Workbook

Sheet 1. 매수매도 총잔량
A3: =TODAY() -> 2023-12-27
A4: 시간 | B4: 매도총잔량 | C4: 매도건수 | D4: 매수총잔량 | E4: 매수건수 | F4: 순매수총잔량 | G4: 선물지수 | H4: 순매수건수 | I4: 평균계약수
A5: 45287.65694 | B5: 5084 | C5: 467 | D5: 9309 | E5: 1672 | F5: 4225 | G5: 355.9 | H5: 1205 | I5: 3.506224066
B6: 건수당 계약수 | C6: 10.88650964 | D6: 건수당 계약수 | E6: 5.567583732 | F6: 건수당 순매수 계약수 | H6: -5.318925904
A8: 시간 | B8: 매도총잔량 | C8: 매도건수 | D8: 매수총잔량 | E8: 매수건수 | F8: 순매수총잔량 | G8: 선물지수 | H8: 순매수건수 | I8: 평균계약수
A9: 08:40:00 | B9: 12404 | C9: 1074 | D9: 13230 | E9: 1252 | F9: 826 | G9: 352 | H9: =(D9/E9)-(B9/C9) -> -0.9822555792 | I9: =(D9-B9)/(E9-C9) -> 4.640449438
A10: 08:41:00 | B10: 12490 | C10: 1098 | D10: 13259 | E10: 1278 | F10: 769 | G10: 352 | H10: =(D10/E10)-(B10/C10) -> -1.000423305 | I10: =(D10-B10)/(E10-C10) -> 4.272222222
A11: 08:42:00 | B11: 12527 | C11: 1106 | D11: 13316 | E11: 1298 | F11: 789 | G11: 352 | H11: -1.067541662 | I11: 4.109375
A12: 08:43:00 | B12: 12381 | C12: 1105 | D12: 13327 | E12: 1329 | F12: 946 | G12: 352 | H12: -1.176684405 | I12: 4.223214286
A13: 08:44:00 | B13: 11536 | C13: 1044 | D13: 12668 | E13: 1273 | F13: 1132 | G13: 352 | H13: -1.098512278 | I13: 4.943231441
A14: 08:45:00 | B14: 11944 | C14: 1141 | D14: 13025 | E14: 1389 | F14: 1081 | G14: 352 | H14: -1.090760697 | I14: 4.358870968
A15: 08:46:00 | B15: 11732 | C15: 1245 | D15: 13852 | E15: 1610 | F15: 2120 | G15: 352.6 | H15: -0.8195664646 | I15: 5.808219178
A16: 08:47:00 | B16: 12000 | C16: 1376 | D16: 13939 | E16: 1602 | F16: 1939 | G16: 352.55 | H16: -0.019931481 | I16: 8.579646018
A17: 08:48:00 | B17: 12296 | C17: 1492 | D17: 13806 | E17: 1571 | F17: 1510 | G17: 352.45 | H17: 0.5467462367 | I17: 19.11392405
A18: 08:49:00 | B18: 12466 | C18: 1578 | D18: 13806 | E18: 1623 | F18: 1340 | G18: 352.35 | H18: 0.6065962436 | I18: 29.77777778
A19: 08:50:00 | B19: 12694 | C19: 1728 | D19: 13639 | E19: 1540 | F19: 945 | G19: 352.05 | H19: 1.510428692 | I19: -5.026595745
A20: 08:51:00 | B20: 12610 | C20: 1685 | D20: 13937 | E20: 1665 | F20: 1327 | G20: 352.2 | H20: 0.8868910453 | I20: -66.35
A21: 08:52:00 | B21: 12589 | C21: 1708 | D21: 13943 | E21: 1672 | F21: 1354 | G21: 352.25 | H21: 0.9685059332 | I21: -37.61111111
A22: 08:53:00 | B22: 12293 | C22: 1582 | D22: 14218 | E22: 1795 | F22: 1925 | G22: 352.5 | H22: 0.1503477492 | I22: =(D22-B22)/(E22-C22) -> 9.037558685
A23: 08:54:00 | B23: 12243 | C23: 1555 | D23: 14307 | E23: 1858 | F23: 2064 | G23: 352.55 | H23: -0.1730966119 | I23: 6.811881188
A24: 08:55:00 | B24: 12278 | C24: 1572 | D24: 14413 | E24: 1898 | F24: 2135 | G24: 352.65 | H24: -0.2166496406 | I24: 6.549079755
A25: 08:56:00 | B25: 12171 | C25: 1531 | D25: 14608 | E25: 1941 | F25: 2437 | G25: 352.7 | H25: -0.4236885577 | I25: 5.943902439
A26: 08:57:00 | B26: 12411 | C26: 1572 | D26: 14494 | E26: 1915 | F26: 2083 | G26: 352.6 | H26: -0.3263697606 | I26: 6.072886297
A27: 08:58:00 | B27: 12368 | C27: 1570 | D27: 14539 | E27: 1933 | F27: 2171 | G27: 352.65 | H27: -0.3562377875 | I27: 5.980716253
A28: 08:59:00 | B28: 12289 | C28: 1546 | D28: 14599 | E28: 1970 | F28: 2310 | G28: 352.7 | H28: -0.5382404896 | I28: 5.448113208
A29: 09:00:00 | B29: 12400 | C29: 1592 | D29: 14563 | E29: 1942 | F29: 2163 | G29: 352.6 | H29: -0.2899745897 | I29: 6.18
A30: 09:01:00 | B30: 11868 | C30: 1413 | D30: 15079 | E30: 2120 | F30: 3211 | G30: 353 | H30: -1.286414894 | I30: 4.541725601
A31: 09:02:00 | B31: 10805 | C31: 1242 | D31: 15720 | E31: 2314 | F31: 4915 | G31: 353.55 | H31: -1.906246651 | I31: 4.58488806
A32: 09:03:00 | B32: 11411 | C32: 1442 | D32: 15515 | E32: 2214 | F32: 4104 | G32: 353.4 | H32: -0.9056364304 | I32: 5.316062176
A33: 09:04:00 | B33: 10263 | C33: 1113 | D33: 16661 | E33: 2506 | F33: 6398 | G33: 354.15 | H33: -2.572580524 | I33: 4.592964824
A34: 09:05:00 | B34: 10009 | C34: 1143 | D34: 16784 | E34: 2505 | F34: 6775 | G34: 354.55 | H34: -2.056580802 | I34: 4.974302496
A35: 09:06:00 | B35: 10501 | C35: 1272 | D35: 16377 | E35: 2358 | F35: 5876 | G35: 354.85 | H35: -1.310210524 | I35: 5.4106814
A36: 09:07:00 | B36: 9495 | C36: 1194 | D36: 17411 | E36: 2609 | F36: 7916 | G36: 355.1 | H36: -1.278823208 | I36: 5.59434629
A37: 09:08:00 | B37: 9666 | C37: 1248 | D37: 18258 | E37: 2798 | F37: 8592 | G37: 355.2 | H37: -1.21981704 | I37: 5.543225806
A38: 09:09:00 | B38: 10790 | C38: 1533 | D38: 17073 | E38: 2530 | F38: 6283 | G38: 354.9 | H38: =(D38/E38)-(B38/C38) -> -0.2902652837 | I38: 6.301905717
A39: 09:10:00 | B39: 11018 | C39: 1623 | D39: 17059 | E39: 2532 | F39: 6041 | G39: 354.8 | H39: =(D39/E39)-(B39/C39) -> -0.05130120046 | I39: 6.645764576
A40: 09:11:00 | B40: 11791 | C40: 1847 | D40: 16676 | E40: 2405 | F40: 4885 | G40: 354.4 | H40: 0.5500220057 | I40: 8.754480287
A41: 09:12:00 | B41: 11876 | C41: 1886 | D41: 16410 | E41: 2349 | F41: 4534 | G41: 354.15 | H41: 0.6890267603 | I41: 9.792656587
A42: 09:13:00 | B42: 11936 | C42: 1881 | D42: 16428 | E42: 2423 | F42: 4492 | G42: 354.05 | H42: 0.4344638908 | I42: 8.287822878
A43: 09:14:00 | B43: 12481 | C43: 2032 | D43: 15828 | E43: 2241 | F43: 3347 | G43: 353.6 | H43: 0.9206939306 | I43: 16.01435407
A44: 09:15:00 | B44: 12788 | C44: 2104 | D44: 15400 | E44: 2110 | F44: 2612 | G44: 353.4 | H44: 1.220631431 | I44: 435.3333333
A45: 09:16:00 | B45: 12510 | C45: 2023 | D45: 15823 | E45: 2310 | F45: 3313 | G45: 353.5 | H45: 0.665898231 | I45: 11.54355401
A46: 09:17:00 | B46: 12259 | C46: 1949 | D46: 16230 | E46: 2463 | F46: 3971 | G46: 353.65 | H46: 0.2996327171 | I46: 7.725680934
A47: 09:18:00 | B47: 13750 | C47: 2218 | D47: 15638 | E47: 2245 | F47: 1888 | G47: 353.35 | H47: 0.7664229296 | I47: 69.92592593
A48: 09:19:00 | B48: 13524 | C48: 2143 | D48: 16184 | E48: 2350 | F48: 2660 | G48: 353.35 | H48: 0.5760292293 | I48: 12.85024155
A49: 09:20:00 | B49: 13477 | C49: 2174 | D49: 16259 | E49: 2395 | F49: 2782 | G49: 353.4 | H49: 0.5895544805 | I49: 12.58823529
A50: 09:21:00 | B50: 13263 | C50: 2102 | D50: 16483 | E50: 2464 | F50: 3220 | G50: 353.45 | H50: 0.379824178 | I50: 8.895027624
A51: 09:22:00 | B51: 12695 | C51: 1937 | D51: 16996 | E51: 2628 | F51: 4301 | G51: 353.65 | H51: -0.08667391163 | I51: =(D51-B51)/(E51-C51) -> 6.22431259
A52: 09:23:00 | B52: 12912 | C52: 2014 | D52: 17085 | E52: 2594 | F52: 4173 | G52: 353.5 | H52: 0.1752309776 | I52: 7.194827586
A53: 09:24:00 | B53: 13639 | C53: 2188 | D53: 16597 | E53: 2436 | F53: 2958 | G53: 353.35 | H53: 0.5796717729 | I53: 11.92741935
A54: 09:25:00 | B54: 14213 | C54: 2351 | D54: 16155 | E54: 2343 | F54: 1942 | G54: 353.15 | H54: 0.8494938542 | I54: -242.75
A55: 09:26:00 | B55: 13846 | C55: 2258 | D55: 16567 | E55: 2440 | F55: 2721 | G55: 353.3 | H55: 0.6577788991 | I55: 14.95054945
A56: 09:27:00 | B56: 13930 | C56: 2276 | D56: 16543 | E56: 2461 | F56: 2613 | G56: 353.3 | H56: 0.6016775583 | I56: 14.12432432
A57: 09:28:00 | B57: 14157 | C57: 2354 | D57: 16323 | E57: 2358 | F57: 2166 | G57: 353.15 | H57: 0.9083731659 | I57: 541.5
A58: 09:29:00 | B58: 14513 | C58: 2427 | D58: 16159 | E58: 2307 | F58: 1646 | G58: 353 | H58: 1.024524168 | I58: -13.71666667
A59: 09:30:00 | B59: 14569 | C59: 2408 | D59: 16134 | E59: 2319 | F59: 1565 | G59: 352.85 | H59: 0.9070600156 | I59: -17.58426966
A60: 09:31:00 | B60: 14418 | C60: 2416 | D60: 16354 | E60: 2356 | F60: 1936 | G60: 352.95 | H60: 0.9737109142 | I60: -32.26666667
A61: 09:32:00 | B61: 14131 | C61: 2343 | D61: 16726 | E61: 2463 | F61: 2595 | G61: 353.05 | H61: 0.7597487631 | I61: 21.625
A62: 09:33:00 | B62: 14580 | C62: 2474 | D62: 16387 | E62: 2374 | F62: 1807 | G62: 352.85 | H62: 1.009405654 | I62: -18.07
A63: 09:34:00 | B63: 14542 | C63: 2457 | D63: 16541 | E63: 2391 | F63: 1999 | G63: 352.9 | H63: 0.999426012 | I63: -30.28787879
A64: 09:35:00 | B64: 15058 | C64: 2597 | D64: 16122 | E64: 2265 | F64: 1064 | G64: 352.6 | H64: 1.319652069 | I64: -3.204819277
A65: 09:36:00 | B65: 14886 | C65: 2512 | D65: 16347 | E65: 2330 | F65: 1461 | G65: 352.6 | H65: 1.089924414 | I65: -8.027472527
A66: 09:37:00 | B66: 14748 | C66: 2462 | D66: 16533 | E66: 2386 | F66: 1785 | G66: 352.6 | H66: 0.9389183315 | I66: -23.48684211
A67: 09:38:00 | B67: 14266 | C67: 2347 | D67: 17123 | E67: 2541 | F67: 2857 | G67: 352.75 | H67: 0.660287602 | I67: 14.72680412
A68: 09:39:00 | B68: 14592 | C68: 2436 | D68: 16794 | E68: 2462 | F68: 2202 | G68: 352.65 | H68: 0.8311357261 | I68: 84.69230769
A69: 09:40:00 | B69: 14877 | C69: 2483 | D69: 16583 | E69: 2406 | F69: 1706 | G69: 352.55 | H69: 0.9008099633 | I69: -22.15584416
A70: 09:41:00 | B70: 15207 | C70: 2567 | D70: 16082 | E70: 2293 | F70: 875 | G70: 352.35 | H70: 1.089483567 | I70: -3.193430657
A71: 09:42:00 | B71: 15149 | C71: 2563 | D71: 16220 | E71: 2331 | F71: 1071 | G71: 352.35 | H71: 1.047735378 | I71: -4.61637931
A72: 09:43:00 | B72: 14853 | C72: 2490 | D72: 16549 | E72: 2453 | F72: 1696 | G72: 352.5 | H72: 0.7813726983 | I72: -45.83783784
A73: 09:44:00 | B73: 14958 | C73: 2547 | D73: 16479 | E73: 2408 | F73: 1521 | G73: 352.45 | H73: =(D73/E73)-(B73/C73) -> 0.9706470188 | I73: =(D73-B73)/(E73-C73) -> -10.94244604
A74: 09:45:00 | B74: 15329 | C74: 2653 | D74: 16323 | E74: 2362 | F74: 994 | G74: 352.3 | H74: 1.13268174 | I74: -3.41580756
A75: 09:46:00 | B75: 14512 | C75: 2366 | D75: 17077 | E75: 2588 | F75: 2565 | G75: 352.55 | H75: 0.4649729358 | I75: 11.55405405
A76: 09:47:00 | B76: 14759 | C76: 2448 | D76: 17114 | E76: 2567 | F76: 2355 | G76: 352.45 | H76: 0.6379231052 | I76: 19.78991597
A77: 09:48:00 | B77: 14555 | C77: 2412 | D77: 17265 | E77: 2650 | F77: 2710 | G77: 352.6 | H77: 0.4806830627 | I77: 11.38655462
A78: 09:49:00 | B78: 15100 | C78: 2588 | D78: 16559 | E78: 2439 | F78: 1459 | G78: 352.35 | H78: 0.9546365634 | I78: -9.791946309
A79: 09:50:00 | B79: 15002 | C79: 2570 | D79: 16615 | E79: 2445 | F79: 1613 | G79: 352.35 | H79: 0.9581469369 | I79: -12.904
A80: 09:51:00 | B80: 15486 | C80: 2692 | D80: 16426 | E80: 2365 | F80: 940 | G80: 352.2 | H80: 1.192854248 | I80: -2.874617737
A81: 09:52:00 | B81: 15210 | C81: 2635 | D81: 16708 | E81: 2473 | F81: 1498 | G81: 352.35 | H81: 0.9838705841 | I81: -9.24691358
A82: 09:53:00 | B82: 15425 | C82: 2685 | D82: 16630 | E82: 2434 | F82: 1205 | G82: 352.3 | H82: 1.087495735 | I82: -4.800796813
A83: 09:54:00 | B83: 14989 | C83: 2554 | D83: 16958 | E83: 2586 | F83: 1969 | G83: 352.4 | H83: 0.6887847399 | I83: 61.53125
A84: 09:55:00 | B84: 14971 | C84: 2551 | D84: 17026 | E84: 2621 | F84: 2055 | G84: 352.4 | H84: 0.627314946 | I84: 29.35714286
A85: 09:56:00 | B85: 14549 | C85: 2429 | D85: 17633 | E85: 2765 | F85: 3084 | G85: 352.55 | H85: 0.3875074912 | I85: 9.178571429
A86: 09:57:00 | B86: 14722 | C86: 2450 | D86: 17461 | E86: 2725 | F86: 2739 | G86: 352.5 | H86: 0.3987268302 | I86: 9.96
A87: 09:58:00 | B87: 15003 | C87: 2562 | D87: 16984 | E87: 2608 | F87: 1981 | G87: 352.4 | H87: 0.6562980417 | I87: =(D87-B87)/(E87-C87) -> 43.06521739
A88: 09:59:00 | B88: 14954 | C88: 2542 | D88: 17124 | E88: 2639 | F88: 2170 | G88: 352.4 | H88: 0.6060520504 | I88: 22.37113402
A89: 10:00:00 | B89: 15083 | C89: 2596 | D89: 17009 | E89: 2603 | F89: 1926 | G89: 352.35 | H89: 0.7242909538 | I89: 275.1428571
A90: 10:01:00 | B90: 15175 | C90: 2640 | D90: 16420 | E90: 2540 | F90: 1245 | G90: 352.3 | H90: 0.7164608685 | I90: =(D90-B90)/(E90-C90) -> -12.45
A91: 10:02:00 | B91: 14924 | C91: 2542 | D91: 16629 | E91: 2545 | F91: 1705 | G91: 352.35 | H91: 0.6630204702 | I91: 568.3333333
A92: 10:03:00 | B92: 15335 | C92: 2661 | D92: 16176 | E92: 2460 | F92: 841 | G92: 352.25 | H92: 0.812738655 | I92: -4.184079602
A93: 10:04:00 | B93: 15412 | C93: 2689 | D93: 16163 | E93: 2441 | F93: 751 | G93: 352.2 | H93: 0.8899679136 | I93: -3.028225806
A94: 10:05:00 | B94: 15041 | C94: 2561 | D94: 16523 | E94: 2576 | F94: 1482 | G94: 352.35 | H94: 0.5411116278 | I94: 98.8
A95: 10:06:00 | B95: 15624 | C95: 2769 | D95: 15990 | E95: 2394 | F95: 366 | G95: 352.1 | H95: 1.036727789 | I95: -0.976
A96: 10:07:00 | B96: 15424 | C96: 2667 | D96: 16382 | E96: 2506 | F96: 958 | G96: 352.25 | H96: 0.7538338434 | I96: -5.950310559
A97: 10:08:00 | B97: 15893 | C97: 2813 | D97: 15879 | E97: 2351 | F97: -14 | G97: 352 | H97: 1.104307143 | I97: =(D97-B97)/(E97-C97) -> 0.0303030303
A98: 10:09:00 | B98: 15767 | C98: 2752 | D98: 15730 | E98: 2383 | F98: -37 | G98: 351.95 | H98: 0.8716354153 | I98: 0.1002710027
A99: 10:10:00 | B99: 15699 | C99: 2713 | D99: 15900 | E99: 2439 | F99: 201 | G99: 352 | H99: 0.7324820723 | I99: -0.7335766423
A100: 10:11:00 | B100: 14723 | C100: 2406 | D100: 16860 | E100: 2780 | F100: 2137 | G100: 352.4 | H100: -0.05453691909 | I100: 5.713903743
A101: 10:12:00 | B101: 14721 | C101: 2408 | D101: 17098 | E101: 2801 | F101: 2377 | G101: 352.45 | H101: -0.009123610339 | I101: 6.048346056
A102: 10:13:00 | B102: 15110 | C102: 2518 | D102: 16844 | E102: 2733 | F102: 1734 | G102: 352.3 | H102: 0.1623963518 | I102: 8.065116279
A103: 10:14:00 | B103: 15340 | C103: 2602 | D103: 16513 | E103: 2638 | F103: 1173 | G103: 352.2 | H103: 0.364201387 | I103: 32.58333333
A104: 10:15:00 | B104: 15371 | C104: 2603 | D104: 16587 | E104: 2662 | F104: 1216 | G104: 352.25 | H104: 0.3259198122 | I104: 20.61016949
A105: 10:16:00 | B105: 15601 | C105: 2682 | D105: 16394 | E105: 2586 | F105: 793 | G105: 352.1 | H105: 0.5225928291 | I105: -8.260416667
A106: 10:17:00 | B106: 15677 | C106: 2702 | D106: 16229 | E106: 2548 | F106: 552 | G106: 352.05 | H106: 0.5673107426 | I106: -3.584415584
A107: 10:18:00 | B107: 14960 | C107: 2477 | D107: 16804 | E107: 2727 | F107: 1844 | G107: 352.3 | H107: 0.1225188863 | I107: 7.376
A108: 10:19:00 | B108: 14726 | C108: 2417 | D108: 17048 | E108: 2813 | F108: 2322 | G108: 352.45 | H108: -0.03224317148 | I108: 5.863636364
A109: 10:20:00 | B109: 14652 | C109: 2389 | D109: 17182 | E109: 2862 | F109: 2530 | G109: 352.5 | H109: -0.1296160278 | I109: 5.348837209
A110: 10:21:00 | B110: 14441 | C110: 2291 | D110: 17364 | E110: 2931 | F110: 2923 | G110: 352.6 | H110: -0.3791030453 | I110: 4.5671875
A111: 10:22:00 | B111: 14553 | C111: 2344 | D111: 17350 | E111: 2909 | F111: 2797 | G111: 352.55 | H111: -0.2443688647 | I111: 4.950442478
A112: 10:23:00 | B112: 14193 | C112: 2220 | D112: 17589 | E112: 2998 | F112: 3396 | G112: 352.7 | H112: -0.5263319691 | I112: 4.36503856
A113: 10:24:00 | B113: 14628 | C113: 2398 | D113: 17234 | E113: 2888 | F113: 2606 | G113: 352.55 | H113: -0.1326318793 | I113: 5.318367347
A114: 10:25:00 | B114: 14608 | C114: 2382 | D114: 17407 | E114: 2948 | F114: 2799 | G114: 352.6 | H114: -0.2279804891 | I114: 4.945229682
A115: 10:26:00 | B115: 14486 | C115: 2340 | D115: 17405 | E115: 2946 | F115: 2919 | G115: 352.65 | H115: -0.2825874284 | I115: 4.816831683
A116: 10:27:00 | B116: 14511 | C116: 2348 | D116: 17400 | E116: 2954 | F116: 2889 | G116: 352.65 | H116: -0.2898351094 | I116: 4.767326733
A117: 10:28:00 | B117: 14898 | C117: 2480 | D117: 17024 | E117: 2824 | F117: 2126 | G117: 352.5 | H117: 0.02107054738 | I117: 6.180232558
A118: 10:29:00 | B118: 14966 | C118: 2505 | D118: 17087 | E118: 2812 | F118: 2121 | G118: 352.45 | H118: 0.1020069392 | I118: 6.908794788
A119: 10:30:00 | B119: 14888 | C119: 2488 | D119: 17252 | E119: 2857 | F119: 2364 | G119: 352.55 | H119: 0.05457909551 | I119: 6.406504065
A120: 10:31:00 | B120: 15348 | C120: 2605 | D120: 16844 | E120: 2739 | F120: 1496 | G120: 352.4 | H120: 0.2579430267 | I120: 11.1641791
A121: 10:32:00 | B121: 15519 | C121: 2663 | D121: 16651 | E121: 2680 | F121: 1132 | G121: 352.3 | H121: 0.3854216992 | I121: 66.58823529
A122: 10:33:00 | B122: 15106 | C122: 2549 | D122: 17020 | E122: 2814 | F122: 1914 | G122: 352.45 | H122: 0.1220841932 | I122: 7.222641509
A123: 10:34:00 | B123: 14910 | C123: 2521 | D123: 17294 | E123: 2895 | F123: 2384 | G123: 352.5 | H123: 0.05942812671 | I123: 6.374331551
A124: 10:35:00 | B124: 14750 | C124: 2468 | D124: 17451 | E124: 2941 | F124: 2701 | G124: 352.55 | H124: -0.04280316787 | I124: 5.710359408
A125: 10:36:00 | B125: 14327 | C125: 2345 | D125: 17629 | E125: 3046 | F125: 3302 | G125: 352.7 | H125: -0.3220046004 | I125: 4.710413695
A126: 10:37:00 | B126: 14412 | C126: 2364 | D126: 17674 | E126: 3023 | F126: 3262 | G126: 352.65 | H126: -0.2499366112 | I126: 4.949924127
A127: 10:38:00 | B127: 14011 | C127: 2208 | D127: 17984 | E127: 3123 | F127: 3973 | G127: 352.8 | H127: -0.5869961123 | I127: 4.342076503
A128: 10:39:00 | B128: 14287 | C128: 2325 | D128: 17771 | E128: 3068 | F128: 3484 | G128: 352.75 | H128: -0.3525733552 | I128: 4.68909825
A129: 10:40:00 | B129: 14122 | C129: 2255 | D129: 17933 | E129: 3131 | F129: 3811 | G129: 352.8 | H129: -0.5349646373 | I129: 4.350456621
A130: 10:41:00 | B130: 14182 | C130: 2300 | D130: 17972 | E130: 3108 | F130: 3790 | G130: 352.8 | H130: -0.383590174 | I130: =(D130-B130)/(E130-C130) -> 4.690594059
A131: 10:42:00 | B131: 14017 | C131: 2250 | D131: 18160 | E131: 3172 | F131: 4143 | G131: 352.9 | H131: =(D131/E131)-(B131/C131) -> -0.5046832002 | I131: =(D131-B131)/(E131-C131) -> 4.493492408
A132: 10:43:00 | B132: 13679 | C132: 2172 | D132: 18354 | E132: 3199 | F132: 4675 | G132: 353.05 | H132: -0.5604641932 | I132: 4.552093476
A133: 10:44:00 | B133: 13513 | C133: 2129 | D133: 18626 | E133: 3235 | F133: 5113 | G133: 353.1 | H133: -0.5894606244 | I133: 4.622965642
A134: 10:45:00 | B134: 13295 | C134: 2056 | D134: 18840 | E134: 3330 | F134: 5545 | G134: 353.2 | H134: =(D134/E134)-(B134/C134) -> -0.8087820311 | I134: =(D134-B134)/(E134-C134) -> 4.352433281
A135: 10:46:00 | B135: 13145 | C135: 2012 | D135: 19108 | E135: 3357 | F135: 5963 | G135: 353.35 | H135: =(D135/E135)-(B135/C135) -> -0.8413133057 | I135: =(D135-B135)/(E135-C135) -> 4.433457249
A136: 10:47:00 | B136: 12849 | C136: 1930 | D136: 19491 | E136: 3449 | F136: 6642 | G136: 353.5 | H136: -1.006309706 | I136: 4.372613562
A137: 10:48:00 | B137: 13162 | C137: 2058 | D137: 19289 | E137: 3395 | F137: 6127 | G137: 353.45 | H137: -0.7139390661 | I137: 4.582647719
A138: 10:49:00 | B138: 12231 | C138: 1786 | D138: 19875 | E138: 3548 | F138: 7644 | G138: 353.8 | H138: -1.246516814 | I138: 4.338251986
A139: 10:50:00 | B139: 11813 | C139: 1721 | D139: 20233 | E139: 3576 | F139: 8420 | G139: 354.1 | H139: -1.206034776 | I139: 4.539083558
A140: 10:51:00 | B140: 12209 | C140: 1857 | D140: 19960 | E140: 3517 | F140: 7751 | G140: 354 | H140: -0.8992912186 | I140: 4.669277108
A141: 10:52:00 | B141: 12884 | C141: 1977 | D141: 19571 | E141: 3378 | F141: 6687 | G141: 353.85 | H141: -0.7232799755 | I141: 4.773019272
A142: 10:53:00 | B142: 13814 | C142: 2243 | D142: 19020 | E142: 3222 | F142: 5206 | G142: 353.55 | H142: -0.2555502698 | I142: 5.317671093
A143: 10:54:00 | B143: 13474 | C143: 2150 | D143: 19425 | E143: 3372 | F143: 5951 | G143: 353.65 | H143: -0.5063005876 | I143: 4.869885434
A144: 10:55:00 | B144: 13702 | C144: 2219 | D144: 19159 | E144: 3278 | F144: 5457 | G144: 353.55 | H144: -0.3301311459 | I144: 5.152974504
A145: 10:56:00 | B145: 13357 | C145: 2120 | D145: 19552 | E145: 3399 | F145: 6195 | G145: 353.65 | H145: -0.5481916157 | I145: 4.843627834
A146: 10:57:00 | B146: 13142 | C146: 2089 | D146: 19719 | E146: 3458 | F146: 6577 | G146: 353.7 | H146: -0.5886191987 | I146: 4.804236669
A147: 10:58:00 | B147: 13305 | C147: 2145 | D147: 19542 | E147: 3410 | F147: 6237 | G147: 353.65 | H147: -0.4720054139 | I147: 4.930434783
A148: 10:59:00 | B148: 13796 | C148: 2316 | D148: 19038 | E148: 3247 | F148: 5242 | G148: 353.45 | H148: -0.09356371472 | I148: 5.630504834
A149: 11:00:00 | B149: 13792 | C149: 2291 | D149: 19020 | E149: 3269 | F149: 5228 | G149: 353.45 | H149: -0.2017855123 | I149: 5.345603272
A150: 11:01:00 | B150: 13646 | C150: 2244 | D150: 19114 | E150: 3301 | F150: 5468 | G150: 353.5 | H150: -0.2907386138 | I150: 5.173131504
A151: 11:02:00 | B151: 13924 | C151: 2310 | D151: 18967 | E151: 3274 | F151: 5043 | G151: 353.45 | H151: -0.2344863241 | I151: 5.231327801
A152: 11:03:00 | B152: 13561 | C152: 2189 | D152: 19209 | E152: 3356 | F152: 5648 | G152: 353.55 | H152: -0.4712879328 | I152: 4.839760069
A153: 11:04:00 | B153: 13520 | C153: 2186 | D153: 19333 | E153: 3393 | F153: 5813 | G153: 353.55 | H153: -0.4869049863 | I153: 4.816072908
A154: 11:05:00 | B154: 13313 | C154: 2127 | D154: 19593 | E154: 3481 | F154: 6280 | G154: 353.65 | H154: -0.6304952927 | I154: 4.638109306
A155: 11:06:00 | B155: 13205 | C155: 2051 | D155: 19865 | E155: 3580 | F155: 6660 | G155: 353.75 | H155: -0.8894400878 | I155: 4.355788097
A156: 11:07:00 | B156: 13441 | C156: 2159 | D156: 19648 | E156: 3498 | F156: 6207 | G156: 353.7 | H156: -0.6086434358 | I156: 4.635548917
A157: 11:08:00 | B157: 13311 | C157: 2120 | D157: 19809 | E157: 3543 | F157: 6498 | G157: 353.7 | H157: -0.6877490294 | I157: 4.566408995
A158: 11:09:00 | B158: 13039 | C158: 2023 | D158: 20132 | E158: 3645 | F158: 7093 | G158: 353.8 | H158: -0.9221957096 | I158: 4.372996301
A159: 11:10:00 | B159: 12917 | C159: 1985 | D159: 20237 | E159: 3687 | F159: 7320 | G159: 353.9 | H159: -1.018560549 | I159: 4.300822562
A160: 11:11:00 | B160: 12565 | C160: 1891 | D160: 20405 | E160: 3703 | F160: 7840 | G160: 354 | H160: -1.134235494 | I160: 4.326710817
A161: 11:12:00 | B161: 12485 | C161: 1867 | D161: 20624 | E161: 3846 | F161: 8139 | G161: 354 | H161: -1.324744216 | I161: 4.112683173
A162: 11:13:00 | B162: 12308 | C162: 1834 | D162: 20648 | E162: 3758 | F162: 8340 | G162: 354.1 | H162: -1.216602255 | I162: 4.334719335
A163: 11:14:00 | B163: 12049 | C163: 1761 | D163: 20811 | E163: 3799 | F163: 8762 | G163: 354.2 | H163: -1.364114619 | I163: 4.299313052
A164: 11:15:00 | B164: 12422 | C164: 1928 | D164: 20521 | E164: 3710 | F164: 8099 | G164: 354.05 | H164: -0.9116792117 | I164: 4.544893378
A165: 11:16:00 | B165: 13171 | C165: 2158 | D165: 19910 | E165: 3496 | F165: 6739 | G165: 353.8 | H165: -0.4082563311 | I165: 5.036621824
A166: 11:17:00 | B166: 13034 | C166: 2112 | D166: 20020 | E166: 3532 | F166: 6986 | G166: 353.8 | H166: -0.5032248447 | I166: 4.91971831
A167: 11:18:00 | B167: 13449 | C167: 2272 | D167: 19689 | E167: 3439 | F167: 6240 | G167: 353.7 | H167: -0.1942434083 | I167: 5.347043702
A168: 11:19:00 | B168: 13484 | C168: 2265 | D168: 19474 | E168: 3405 | F168: 5990 | G168: 353.7 | H168: -0.233964466 | I168: 5.254385965
A169: 11:20:00 | B169: 13432 | C169: 2236 | D169: 19632 | E169: 3461 | F169: 6200 | G169: 353.7 | H169: -0.334806603 | I169: 5.06122449
A170: 11:21:00 | B170: 13475 | C170: 2253 | D170: 19586 | E170: 3447 | F170: 6111 | G170: 353.7 | H170: -0.2988719808 | I170: 5.118090452
A171: 11:22:00 | B171: 13665 | C171: 2273 | D171: 19506 | E171: 3433 | F171: 5841 | G171: 353.65 | H171: -0.3299677094 | I171: 5.035344828
A172: 11:23:00 | B172: 13877 | C172: 2336 | D172: 19278 | E172: 3367 | F172: 5401 | G172: 353.55 | H172: -0.2149248498 | I172: 5.238603298
A173: 11:24:00 | B173: 13872 | C173: 2347 | D173: 19270 | E173: 3379 | F173: 5398 | G173: 353.6 | H173: -0.2076534015 | I173: 5.230620155
A174: 11:25:00 | B174: 13602 | C174: 2247 | D174: 19510 | E174: 3444 | F174: 5908 | G174: 353.7 | H174: -0.388480033 | I174: 4.935672515
A175: 11:26:00 | B175: 13776 | C175: 2307 | D175: 19337 | E175: 3402 | F175: 5561 | G175: 353.6 | H175: -0.2873820112 | I175: 5.078538813
A176: 11:27:00 | B176: 13940 | C176: 2369 | D176: 19145 | E176: 3329 | F176: 5205 | G176: 353.5 | H176: -0.1333631146 | I176: 5.421875
A177: 11:28:00 | B177: 14070 | C177: 2413 | D177: 18891 | E177: 3183 | F177: 4821 | G177: 353.45 | H177: 0.1040511399 | I177: 6.261038961
A178: 11:29:00 | B178: 14146 | C178: 2443 | D178: 18570 | E178: 3142 | F178: 4424 | G178: 353.3 | H178: 0.1198266368 | I178: 6.329041488
A179: 11:30:00 | B179: 14276 | C179: 2480 | D179: 18632 | E179: 3157 | F179: 4356 | G179: 353.35 | H179: 0.1453538987 | I179: 6.434268833
A180: 11:31:00 | B180: 14014 | C180: 2397 | D180: 18980 | E180: 3216 | F180: 4966 | G180: 353.4 | H180: 0.05526653342 | I180: 6.063492063
A181: 11:32:00 | B181: 14257 | C181: 2475 | D181: 18757 | E181: 3138 | F181: 4500 | G181: 353.3 | H181: 0.2169700832 | I181: 6.787330317
A182: 11:33:00 | B182: 13745 | C182: 2316 | D182: 19298 | E182: 3302 | F182: 5553 | G182: 353.45 | H182: -0.0904646161 | I182: 5.631845842
A183: 11:34:00 | B183: 13495 | C183: 2251 | D183: 19614 | E183: 3385 | F183: 6119 | G183: 353.6 | H183: -0.2007262815 | I183: 5.395943563
A184: 11:35:00 | B184: 13702 | C184: 2317 | D184: 19488 | E184: 3347 | F184: 5786 | G184: 353.5 | H184: -0.09115384799 | I184: 5.617475728
A185: 11:36:00 | B185: 13989 | C185: 2404 | D185: 19233 | E185: 3248 | F185: 5244 | G185: 353.4 | H185: 0.1024385671 | I185: 6.213270142
A186: 11:37:00 | B186: 14332 | C186: 2523 | D186: 18883 | E186: 3167 | F186: 4551 | G186: 353.3 | H186: 0.2818859671 | I186: 7.066770186
A187: 11:38:00 | B187: 14194 | C187: 2448 | D187: 19010 | E187: 3211 | F187: 4816 | G187: 353.35 | H187: 0.1220714435 | I187: 6.311926606
A188: 11:39:00 | B188: 13924 | C188: 2364 | D188: 19336 | E188: 3323 | F188: 5412 | G188: 353.45 | H188: -0.07117852144 | I188: 5.643378519
A189: 11:40:00 | B189: 14208 | C189: 2464 | D189: 19071 | E189: 3243 | F189: 4863 | G189: 353.35 | H189: 0.1144322837 | I189: 6.242618742
A190: 11:41:00 | B190: 14371 | C190: 2491 | D190: 18925 | E190: 3190 | F190: 4554 | G190: 353.3 | H190: 0.1634328724 | I190: 6.515021459
A191: 11:42:00 | B191: 14652 | C191: 2567 | D191: 18690 | E191: 3100 | F191: 4038 | G191: 353.2 | H191: 0.3212021061 | I191: 7.575984991
A192: 11:43:00 | B192: 14536 | C192: 2531 | D192: 18766 | E192: 3139 | F192: 4230 | G192: 353.25 | H192: 0.235152538 | I192: 6.957236842
A193: 11:44:00 | B193: 14283 | C193: 2470 | D193: 18985 | E193: 3216 | F193: 4702 | G193: 353.35 | H193: 0.1207049268 | I193: 6.302949062
A194: 11:45:00 | B194: 14308 | C194: 2488 | D194: 18957 | E194: 3204 | F194: 4649 | G194: 353.3 | H194: 0.1658628081 | I194: 6.49301676
A195: 11:46:00 | B195: 14417 | C195: 2504 | D195: 18876 | E195: 3194 | F195: 4459 | G195: 353.3 | H195: 0.1522430736 | I195: 6.462318841
A196: 11:47:00 | B196: 14665 | C196: 2555 | D196: 18682 | E196: 3141 | F196: 4017 | G196: 353.2 | H196: 0.2080613015 | I196: 6.854948805
A197: 11:48:00 | B197: 14746 | C197: 2591 | D197: 18636 | E197: 3141 | F197: 3890 | G197: 353.2 | H197: 0.2419034075 | I197: 7.072727273
A198: 11:49:00 | B198: 14682 | C198: 2551 | D198: 18626 | E198: 3145 | F198: 3944 | G198: 353.2 | H198: 0.1670264911 | I198: 6.63973064
A199: 11:50:00 | B199: 14392 | C199: 2449 | D199: 19008 | E199: 3236 | F199: 4616 | G199: 353.3 | H199: =(D199/E199)-(B199/C199) -> -0.002765943164 | I199: =(D199-B199)/(E199-C199) -> 5.865311309
A200: 11:51:00 | B200: 14907 | C200: 2572 | D200: 18239 | E200: 3042 | F200: 3332 | G200: 353.15 | H200: 0.1998478021 | I200: 7.089361702
A201: 11:52:00 | B201: 14859 | C201: 2548 | D201: 18275 | E201: 3050 | F201: 3416 | G201: 353.15 | H201: 0.1601706256 | I201: 6.804780876
A202: 11:53:00 | B202: 14783 | C202: 2535 | D202: 18380 | E202: 3102 | F202: 3597 | G202: 353.15 | H202: 0.09365135683 | I202: 6.343915344
A203: 11:54:00 | B203: 15023 | C203: 2604 | D203: 18106 | E203: 3002 | F203: 3083 | G203: 353.1 | H203: 0.2621112295 | I203: 7.746231156
... 232 more rows

Sheet 2. 순매수에 따른 익일가격 (hidden)
I1: 15:35:00 | T1: 15:45:00 | AB1: 발생횟수 | AC1: 성공횟수 | AD1: 확률
B2: 날짜 | C2: 시간 | D2: 매도총잔량 | E2: 매도건수 | F2: 매수총잔량 | G2: 매수건수 | H2: 순매수총잔량 | I2: 선물지수 | J2: 순매수건수 | K2: 평균계약수 | M2: 날짜 | N2: 시간 | O2: 매도총잔량 | P2: 매도건수 | Q2: 매수총잔량 | R2: 매수건수 | S2: 순매수총잔량 | T2: 선물지수 | U2: 순매수건수 | V2: 평균계약수 | W2: 종가 | Y2: 순매수총잔량 | Z2: 시작가 | AA2: 일치여부 | AB2: =COUNTA(AA4:AA1000) -> 55 | AC2: =COUNTIF(AA4:AA1000,"성공") -> 29 | AD2: =AC2/AB2 -> 0.5272727273
B3: 2023-10-12 | C3: 15:35:00 | D3: 9508 | E3: 1216 | F3: 15618 | G3: 2033 | H3: 6110 | I3: 330.4 | J3: -0.1368359567 | K3: 7.478580171 | M3: 2023-10-12 | N3: 15:46:00 | O3: 10474 | P3: 1101 | Q3: 13874 | R3: 1542 | S3: 3400 | T3: 330.45 | U3: -0.5157638793 | V3: 7.709750567 | W3: =T3 -> 330.45 | Y3: =IF(H3>S3,"하락","상승") -> 하락 | AB3: 순매수총잔량 증감율
A4: 금 | B4: 2023-10-13 | C4: 15:35:00 | D4: 14867 | E4: 1854 | F4: 13866 | G4: 1712 | H4: -1001 | I4: 327.45 | J4: 0.08042096402 | K4: 7.049295775 | M4: 2023-10-13 | N4: 15:46:00 | O4: 11298 | P4: 1240 | Q4: 11489 | R4: 1268 | S4: 191 | T4: 327.85 | U4: -0.05056477053 | V4: 6.821428571 | W4: 327.85 | Y4: 상승 | Z4: 327.45 | AA4: =IF(AND(Y3="상승",Z4>W3),"성공",IF(AND(Y3="하락",Z4<W3),"성공",IF(AND(Y3="상승",Z4=W3),"동일가",IF(AND(Y3="하락",Z4=W3),"동일가","실패")))) -> 성공 | AB4: =S4/H4-1 -> -1.190809191
B5: 2023-10-16 | C5: 15:35:00 | D5: 15940 | E5: 1970 | F5: 11709 | G5: 1602 | H5: -4231 | I5: 325.05 | J5: -0.7823817943 | K5: 11.49728261 | M5: 2023-10-16 | N5: 15:46:00 | O5: 7849 | P5: 1022 | Q5: 5360 | R5: 774 | S5: -2489 | T5: 324.85 | U5: -0.7549745395 | V5: 10.03629032 | W5: 324.85 | Y5: =IF(H5>S5,"하락","상승") -> 상승 | Z5: 326.2 | AA5: 실패 | AB5: -0.4117229969
B6: 2023-10-17 | C6: 15:35:00 | D6: 13240 | E6: 1889 | F6: 17947 | G6: 2371 | H6: 4707 | I6: 328.7 | J6: 0.5603805378 | K6: 9.765560166 | M6: 2023-10-17 | N6: 15:46:00 | O6: 4526 | P6: 1045 | Q6: 8044 | R6: 1103 | S6: 3518 | T6: 328.8 | U6: 2.961737237 | V6: 60.65517241 | W6: 328.8 | Y6: 하락 | Z6: 327.15 | AA6: 성공 | AB6: -0.2526025069
B7: 2023-10-18 | C7: 15:35:00 | D7: 12859 | E7: 1924 | F7: 19132 | G7: 2629 | H7: 6273 | I7: 330.15 | J7: 0.5938198124 | K7: 8.89787234 | M7: 2023-10-18 | N7: 15:46:00 | O7: 5359 | P7: 994 | Q7: 9271 | R7: 1403 | S7: 3912 | T7: 330.2 | U7: 1.216634805 | V7: 9.564792176 | W7: 330.2 | Y7: 하락 | Z7: 327.95 | AA7: 성공 | AB7: -0.3763749402
B8: 2023-10-19 | C8: 15:35:00 | D8: 21327 | E8: 2960 | F8: 9834 | G8: 1197 | H8: -11493 | I8: 323.7 | J8: 1.01047128 | K8: 6.519001702 | M8: 2023-10-19 | N8: 15:46:00 | O8: 9871 | P8: 1718 | Q8: 5219 | R8: 684 | S8: -4652 | T8: 323.7 | U8: 1.8844825 | V8: 4.499032882 | W8: 323.7 | Y8: 상승 | Z8: 326.5 | AA8: 성공 | AB8: -0.5952318803
A9: 금 | B9: 2023-10-20 | C9: 15:35:00 | D9: 18708 | E9: 2366 | F9: 11741 | G9: 1732 | H9: -6967 | I9: 319.1 | J9: -0.263889643 | K9: 7.72796518 | M9: 2023-10-20 | N9: 15:46:00 | O9: 9208 | P9: 1203 | Q9: 6245 | R9: 949 | S9: -2963 | T9: 318.85 | U9: -1.073586669 | V9: 11.66535433 | W9: 318.85 | Y9: 상승 | Z9: 321 | AA9: 실패 | AB9: -0.5747093441
B10: 2023-10-23 | C10: 15:35:00 | D10: 14892 | E10: 2334 | F10: 14494 | G10: 1833 | H10: -398 | I10: 317.15 | J10: 1.52679314 | K10: 0.7944111776 | M10: 2023-10-23 | N10: 15:46:00 | O10: 8073 | P10: 1395 | Q10: 6831 | R10: 945 | S10: -1242 | T10: 317 | U10: 1.441474654 | V10: 2.76 | W10: 317 | Y10: 하락 | Z10: 317.15 | AA10: =IF(AND(Y9="상승",Z10>W9),"성공",IF(AND(Y9="하락",Z10<W9),"성공",IF(AND(Y9="상승",Z10=W9),"동일가",IF(AND(Y9="하락",Z10=W9),"동일가","실패")))) -> 실패 | AB10: =S10/H10-1 -> 2.120603015
B11: 2023-10-24 | C11: 15:35:00 | D11: 11514 | E11: 1530 | F11: 17453 | G11: 2719 | H11: 5939 | I11: 319.65 | J11: -1.106586187 | K11: 4.994953743 | M11: 2023-10-24 | N11: 15:46:00 | O11: 5906 | P11: 849 | Q11: 7700 | R11: 1211 | S11: 1794 | T11: 319.55 | U11: -0.598037814 | V11: 4.955801105 | W11: 319.55 | Y11: 하락 | Z11: 318.55 | AA11: 실패 | AB11: -0.6979289443
B12: 2023-10-25 | C12: 15:35:00 | D12: 18960 | E12: 2689 | F12: 10553 | G12: 1355 | H12: -8407 | I12: 317.75 | J12: 0.9912027057 | K12: 5.52532391 | M12: 2023-10-25 | N12: 15:46:00 | O12: 8726 | P12: 1370 | Q12: 4076 | R12: 566 | S12: -4650 | T12: 317.85 | U12: 0.8320703619 | V12: 5.78358209 | W12: 317.85 | Y12: 상승 | Z12: 320.3 | AA12: 실패 | AB12: -0.4468894968
B13: 2023-10-26 | C13: 15:35:00 | D13: 20611 | E13: 2970 | F13: 8651 | G13: 1141 | H13: -11960 | I13: 309.4 | J13: 0.5471770049 | K13: 6.249262537 | M13: 2023-10-26 | N13: 15:46:00 | O13: 8791 | P13: 1423 | Q13: 6158 | R13: 680 | S13: -2633 | T13: 309.15 | U13: 2.878088959 | V13: 3.543741588 | W13: 309.15 | Y13: =IF(H13>S13,"하락","상승") -> 상승 | Z13: 312.95 | AA13: 실패 | AB13: -0.7798494983
A14: 금 | B14: 2023-10-27 | C14: 15:35:00 | D14: 14273 | E14: 2133 | F14: 13278 | G14: 1990 | H14: -995 | I14: 309.5 | J14: -0.01915249006 | K14: 6.958041958 | M14: 2023-10-27 | N14: 15:46:00 | O14: 7000 | P14: 1081 | Q14: 6563 | R14: 956 | S14: -437 | T14: 309.2 | U14: 0.3895771001 | V14: 3.496 | W14: 309.2 | Y14: 상승 | Z14: 309.95 | AA14: 성공 | AB14: -0.5608040201
B15: 2023-10-30 | C15: 15:35:00 | D15: 10351 | E15: 1519 | F15: 18337 | G15: 2271 | H15: 7986 | I15: 310.3 | J15: 1.26006501 | K15: 10.61968085 | M15: 2023-10-30 | N15: 15:46:00 | O15: 3324 | P15: 627 | Q15: 7833 | R15: 941 | S15: 4509 | T15: 310.2 | U15: 3.022687866 | V15: 14.35987261 | W15: 310.2 | Y15: 하락 | Z15: 307.25 | AA15: 실패 | AB15: -0.4353869271
B16: 2023-10-31 | C16: 15:35:00 | D16: 19479 | E16: 2879 | F16: 10061 | G16: 1313 | H16: -9418 | I16: 306.75 | J16: 0.8967137877 | K16: 6.014048531 | M16: 2023-10-31 | N16: 15:46:00 | O16: 9313 | P16: 1622 | Q16: 4459 | R16: 643 | S16: -4854 | T16: 307.1 | U16: 1.19300424 | V16: 4.958120531 | W16: 307.1 | Y16: 상승 | Z16: 311.65 | AA16: =IF(AND(Y15="상승",Z16>W15),"성공",IF(AND(Y15="하락",Z16<W15),"성공",IF(AND(Y15="상승",Z16=W15),"동일가",IF(AND(Y15="하락",Z16=W15),"동일가","실패")))) -> 실패 | AB16: =S16/H16-1 -> -0.4846039499
B17: 2023-11-01 | C17: 15:35:00 | D17: 12505 | E17: 1840 | F17: 18703 | G17: 2301 | H17: 6198 | I17: 310.8 | J17: 1.332009476 | K17: 13.44468547 | M17: 2023-11-01 | N17: 15:46:00 | O17: 6095 | P17: 1011 | Q17: 7729 | R17: 1068 | S17: 1634 | T17: 311.05 | U17: 1.208206915 | V17: 28.66666667 | W17: 311.05 | Y17: 하락 | Z17: 308.4 | AA17: 성공 | AB17: -0.7363665699
B18: 2023-11-02 | C18: 15:35:00 | D18: 15256 | E18: 2159 | F18: 17094 | G18: 1861 | H18: 1838 | I18: 315.9 | J18: 2.119149834 | K18: -6.167785235 | M18: 2023-11-02 | N18: 15:46:00 | O18: 7632 | P18: 1221 | Q18: 7674 | R18: 962 | S18: 42 | T18: 316.15 | U18: 1.726516727 | V18: -0.1621621622 | W18: 316.15 | Y18: 하락 | Z18: 316.05 | AA18: 실패 | AB18: -0.9771490751
A19: 금 | B19: 2023-11-03 | C19: 15:35:00 | D19: 15120 | E19: 2050 | F19: 15477 | G19: 1950 | H19: 357 | I19: 319.5 | J19: 0.5613133208 | K19: -3.57 | M19: 2023-11-03 | N19: 15:45:00 | O19: 14160 | P19: 1654 | Q19: 13848 | R19: 1299 | S19: -312 | T19: 319.6 | U19: 2.099443996 | V19: 0.8788732394 | W19: 319.6 | Y19: =IF(H19>S19,"하락","상승") -> 하락 | Z19: 319.7 | AA19: 실패 | AB19: -1.87394958
B20: 2023-11-06 | C20: 15:35:00 | D20: 3920 | E20: 606 | F20: 24897 | G20: 3711 | H20: 20977 | I20: 334.4 | J20: 0.2403264579 | K20: 6.755877617 | M20: 2023-11-06 | N20: 15:45:00 | O20: 16699 | P20: 1125 | Q20: 25667 | R20: 2368 | S20: 8968 | T20: 335.3 | U20: -4.004450826 | V20: 7.214802896 | W20: 335.3 | Y20: 하락 | Z20: 324 | AA20: 실패 | AB20: -0.5724841493
B21: 2023-11-07 | C21: 15:35:00 | D21: 16844 | E21: 2310 | F21: 13014 | G21: 1871 | H21: -3830 | I21: 328.4 | J21: -0.3361361959 | K21: 8.724373576 | M21: 2023-11-07 | N21: 15:45:00 | O21: 18430 | P21: 1499 | Q21: 16567 | R21: 1414 | S21: -1863 | T21: 328.4 | U21: -0.5784558871 | V21: 21.91764706 | W21: 328.4 | Y21: 상승 | Z21: 334.9 | AA21: 성공 | AB21: -0.5135770235
B22: 2023-11-08 | C22: 15:35:00 | D22: 18810 | E22: 2785 | F22: 7789 | G22: 1052 | H22: -11021 | I22: 324.9 | J22: 0.6499528981 | K22: 6.35949221 | M22: 2023-11-08 | N22: 15:45:00 | O22: 16585 | P22: 2058 | Q22: 10002 | R22: 923 | S22: -6583 | T22: 325.1 | U22: 2.777608087 | V22: 5.8 | W22: 325.1 | Y22: 상승 | Z22: 331.1 | AA22: =IF(AND(Y21="상승",Z22>W21),"성공",IF(AND(Y21="하락",Z22<W21),"성공",IF(AND(Y21="상승",Z22=W21),"동일가",IF(AND(Y21="하락",Z22=W21),"동일가","실패")))) -> 성공 | AB22: =S22/H22-1 -> -0.4026857817
B23: 2023-11-09 | C23: 15:35:00 | D23: 13157 | E23: 1940 | F23: 8442 | G23: 726 | H23: -4715 | I23: 326.65 | J23: 4.846140411 | K23: 3.883855025 | M23: 2023-11-09 | N23: 15:45:00 | O23: 19892 | P23: 2460 | Q23: 11790 | R23: 1098 | S23: -8102 | T23: 326.7 | U23: 2.651526056 | V23: 5.948604993 | W23: =T23 -> 326.7 | Y23: 하락 | Z23: 325.95 | AA23: 성공 | AB23: 0.7183457052
A24: 금 | B24: 2023-11-10 | C24: 15:35:00 | D24: 14965 | E24: 2234 | F24: 15837 | G24: 2507 | H24: 872 | I24: 324.65 | J24: -0.3816345566 | K24: 3.194139194 | M24: 2023-11-10 | N24: 15:45:00 | O24: 12537 | P24: 1437 | Q24: 13881 | R24: 1574 | S24: 1344 | T24: 324.7 | U24: 0.09450676839 | V24: 9.810218978 | W24: 324.7 | Y24: 상승 | Z24: 324 | AA24: 성공 | AB24: 0.5412844037
B25: 2023-11-13 | C25: 15:35:00 | D25: 14877 | E25: 1935 | F25: 10824 | G25: 1241 | H25: -4053 | I25: 324.75 | J25: 1.033626295 | K25: 5.840057637 | M25: 2023-11-13 | N25: 15:45:00 | O25: 14131 | P25: 1907 | Q25: 10515 | R25: 1203 | S25: -3616 | T25: 325.1 | U25: 1.330580209 | V25: 5.136363636 | W25: 325.1 | Y25: =IF(H25>S25,"하락","상승") -> 상승 | Z25: 328.25 | AA25: 성공 | AB25: -0.1078213669
B26: 2023-11-14 | C26: 15:35:00 | D26: 13349 | E26: 1970 | F26: 15127 | G26: 2091 | H26: 1778 | I26: 327.65 | J26: 0.4581955055 | K26: 14.69421488 | M26: 2023-11-14 | N26: 15:45:00 | O26: 11995 | P26: 1573 | Q26: 13193 | R26: 1354 | S26: 1198 | T26: 327.8 | U26: 2.118166042 | V26: -5.470319635 | W26: 327.8 | Y26: 하락 | Z26: 326.6 | AA26: 성공 | AB26: -0.3262092238
B27: 2023-11-15 | C27: 15:35:00 | D27: 12553 | E27: 1770 | F27: 21897 | G27: 2890 | H27: 9344 | I27: 335.1 | J27: 0.4847262135 | K27: 8.342857143 | M27: 2023-11-15 | N27: 15:45:00 | O27: 13505 | P27: 1574 | Q27: 20304 | R27: 2003 | S27: 6799 | T27: 335.25 | U27: 1.556743982 | V27: 15.84848485 | W27: 335.25 | Y27: 하락 | Z27: 334.8 | AA27: 실패 | AB27: -0.2723672945
B28: 2023-11-16 | C28: 16:35:00 | D28: 15736 | E28: 1972 | F28: 15449 | G28: 1947 | H28: -287 | I28: 334.7 | J28: -0.04494458109 | K28: 11.48 | M28: 2023-11-16 | N28: 16:45:00 | O28: 14323 | P28: 1656 | Q28: 12603 | R28: 1365 | S28: -1720 | T28: 334.55 | U28: 0.5838124436 | V28: 5.910652921 | W28: 334.55 | Y28: 하락 | Z28: 334.35 | AA28: 성공 | AB28: 4.993031359
A29: 금 | B29: 2023-11-17 | C29: 15:35:00 | D29: 14539 | E29: 1874 | F29: 13556 | G29: 1595 | H29: -983 | I29: 333.05 | J29: 0.7407884832 | K29: 3.523297491 | M29: 2023-11-17 | N29: 15:45:00 | O29: 7777 | P29: 1096 | Q29: 5924 | R29: 838 | S29: -1853 | T29: 333.1 | U29: -0.02659050921 | V29: 7.182170543 | W29: 333.1 | Y29: 하락 | Z29: 334.2 | AA29: =IF(AND(Y28="상승",Z29>W28),"성공",IF(AND(Y28="하락",Z29<W28),"성공",IF(AND(Y28="상승",Z29=W28),"동일가",IF(AND(Y28="하락",Z29=W28),"동일가","실패")))) -> 성공 | AB29: =S29/H29-1 -> 0.8850457782
B30: 2023-11-20 | C30: 15:35:00 | D30: 11499 | E30: 1434 | F30: 19554 | G30: 2835 | H30: 8055 | I30: 335.55 | J30: -1.121473955 | K30: 5.749464668 | M30: 2023-11-20 | N30: 15:45:00 | O30: 4624 | P30: 708 | Q30: 8556 | R30: 1362 | S30: 3932 | T30: 335.55 | U30: -0.2491351203 | V30: 6.012232416 | W30: 335.55 | Y30: 하락 | Z30: 332.35 | AA30: 성공 | AB30: -0.5118559901
B31: 2023-11-21 | C31: 15:35:00 | D31: 13571 | E31: 1720 | F31: 13268 | G31: 1747 | H31: -303 | I31: 337.2 | J31: -0.2953824496 | K31: -11.22222222 | M31: 2023-11-21 | N31: 15:45:00 | O31: 6977 | P31: 1040 | Q31: 6827 | R31: 975 | S31: -150 | T31: 337.45 | U31: 0.2933974359 | V31: 2.307692308 | W31: 337.45 | Y31: =IF(H31>S31,"하락","상승") -> 상승 | Z31: 338 | AA31: 실패 | AB31: -0.504950495
B32: 2023-11-22 | C32: 15:35:00 | D32: 12155 | E32: 1603 | F32: 21455 | G32: 3128 | H32: 9300 | I32: 337.75 | J32: -0.7236421719 | K32: 6.098360656 | M32: 2023-11-22 | N32: 15:45:00 | O32: 9124 | P32: 1080 | Q32: 16184 | R32: 1840 | S32: 7060 | T32: 338 | U32: 0.3475040258 | V32: 9.289473684 | W32: 338 | Y32: 하락 | Z32: 335 | AA32: 실패 | AB32: -0.2408602151
B33: 2023-11-23 | C33: 15:35:00 | D33: 11017 | E33: 1962 | F33: 11446 | G33: 1862 | H33: 429 | I33: 337.6 | J33: 0.5319650152 | K33: -4.29 | M33: 2023-11-23 | N33: 15:45:00 | O33: 9842 | P33: 1464 | Q33: 11671 | R33: 1161 | S33: 1829 | T33: 337.95 | U33: 3.329863317 | V33: -6.03630363 | W33: 337.95 | Y33: 상승 | Z33: 337.45 | AA33: 성공 | AB33: 3.263403263
A34: 금 | B34: 2023-11-24 | C34: 15:35:00 | D34: 14724 | E34: 2624 | F34: 8163 | G34: 1053 | H34: -6561 | I34: 334.75 | J34: 2.140856264 | K34: 4.176320815 | M34: 2023-11-24 | N34: 15:45:00 | O34: 14916 | P34: 2014 | Q34: 8718 | R34: 815 | S34: -6198 | T34: 334.7 | U34: 3.290775614 | V34: 5.169307756 | W34: 334.7 | Y34: 상승 | Z34: 337.2 | AA34: 실패 | AB34: -0.05532693187
B35: 2023-11-27 | C35: 15:35:00 | D35: 16972 | E35: 2558 | F35: 14481 | G35: 1862 | H35: -2491 | I35: 334.2 | J35: 1.142250382 | K35: 3.579022989 | M35: 2023-11-27 | N35: 15:45:00 | O35: 11748 | P35: 1759 | Q35: 12065 | R35: 1236 | S35: 317 | T35: 334.2 | U35: 3.082532091 | V35: -0.6061185468 | W35: 334.2 | Y35: 상승 | Z35: 334.35 | AA35: 실패 | AB35: -1.127258129
B36: 2023-11-28 | C36: 15:35:00 | D36: 10701 | E36: 1284 | F36: 19672 | G36: 3042 | H36: 8971 | I36: 338.25 | J36: -1.86731399 | K36: 5.102957907 | M36: 2023-11-28 | N36: 15:45:00 | O36: 10306 | P36: 1177 | Q36: 16153 | R36: 1705 | S36: 5847 | T36: 338.4 | U36: 0.7177405651 | V36: 11.07386364 | W36: 338.4 | Y36: 하락 | Z36: 335.75 | AA36: =IF(AND(Y35="상승",Z36>W35),"성공",IF(AND(Y35="하락",Z36<W35),"성공",IF(AND(Y35="상승",Z36=W35),"동일가",IF(AND(Y35="하락",Z36=W35),"동일가","실패")))) -> 성공 | AB36: =S36/H36-1 -> -0.3482331959
B37: 2023-11-29 | C37: 15:35:00 | D37: 13518 | E37: 1890 | F37: 16056 | G37: 2344 | H37: 2538 | I37: 337.3 | J37: -0.3025516008 | K37: 5.59030837 | M37: 2023-11-29 | N37: 15:45:00 | O37: 9769 | P37: 1267 | Q37: 12661 | R37: 1346 | S37: 2892 | T37: 337.55 | U37: 1.696049917 | V37: 36.60759494 | W37: 337.55 | Y37: =IF(H37>S37,"하락","상승") -> 상승 | Z37: 338.35 | AA37: 성공 | AB37: 0.1394799054
B38: 2023-11-30 | C38: 15:35:00 | D38: 12252 | E38: 1347 | F38: 20299 | G38: 2994 | H38: 8047 | I38: 339.05 | J38: -2.315875255 | K38: 4.885853066 | M38: 2023-11-30 | N38: 15:45:00 | O38: 12711 | P38: 1064 | Q38: 15831 | R38: 1811 | S38: 3120 | T38: 339.15 | U38: -3.204849333 | V38: 4.176706827 | W38: 339.15 | Y38: 하락 | Z38: 337.05 | AA38: 실패 | AB38: -0.6122778675
A39: 금 | B39: 2023-12-01 | C39: 15:35:00 | D39: 16548 | E39: 2482 | F39: 11783 | G39: 1535 | H39: -4765 | I39: 335.15 | J39: 1.009017631 | K39: 5.031678986 | M39: 2023-12-01 | N39: 15:45:00 | O39: 13881 | P39: 1676 | Q39: 10641 | R39: 1152 | S39: -3240 | T39: 335.5 | U39: 0.9547595963 | V39: 6.183206107 | W39: 335.5 | Y39: 상승 | Z39: 337.75 | AA39: 성공 | AB39: -0.3200419727
B40: 2023-12-04 | C40: 15:35:00 | D40: 14822 | E40: 1997 | F40: 14749 | G40: 1800 | H40: -73 | I40: 336.7 | J40: 0.7717556891 | K40: 0.3705583756 | M40: 2023-12-04 | N40: 15:45:00 | O40: 12105 | P40: 1572 | Q40: 11318 | R40: 1157 | S40: -787 | T40: 336.7 | U40: 2.081813653 | V40: 1.896385542 | W40: 336.7 | Y40: 하락 | Z40: 337.05 | AA40: 성공 | AB40: 9.780821918
B41: 2023-12-05 | C41: 15:35:00 | D41: 15391 | E41: 2238 | F41: 10643 | G41: 1102 | H41: -4748 | I41: 332.65 | J41: 2.780772306 | K41: 4.179577465 | M41: 2023-12-05 | N41: 15:45:00 | O41: 14028 | P41: 1583 | Q41: 10041 | R41: 839 | S41: -3987 | T41: 332.65 | U41: 3.106163747 | V41: 5.358870968 | W41: 332.65 | Y41: 상승 | Z41: 334.15 | AA41: 성공 | AB41: -0.1602780118
B42: 2023-12-06 | C42: 15:35:00 | D42: 13958 | E42: 1907 | F42: 15189 | G42: 1516 | H42: 1231 | I42: 333.9 | J42: 2.699779524 | K42: -3.148337596 | M42: 2023-12-06 | N42: 15:45:00 | O42: 12316 | P42: 1381 | Q42: 11653 | R42: 1107 | S42: -663 | T42: 333.5 | U42: 1.608473364 | V42: 2.419708029 | W42: 333.5 | Y42: 하락 | Z42: 333.8 | AA42: =IF(AND(Y41="상승",Z42>W41),"성공",IF(AND(Y41="하락",Z42<W41),"성공",IF(AND(Y41="상승",Z42=W41),"동일가",IF(AND(Y41="하락",Z42=W41),"동일가","실패")))) -> 성공 | AB42: =S42/H42-1 -> -1.538586515
B43: 2023-12-07 | C43: 15:35:00 | D43: 12299 | E43: 1489 | F43: 15158 | G43: 1957 | H43: 2859 | I43: 333 | J43: -0.5143771064 | K43: 6.108974359 | M43: 2023-12-07 | N43: 15:45:00 | O43: 11173 | P43: 1117 | Q43: 12060 | R43: 1519 | S43: 887 | T43: 332.4 | U43: -2.063251927 | V43: 2.206467662 | W43: 332.4 | Y43: =IF(H43>S43,"하락","상승") -> 하락 | Z43: 331.8 | AA43: =IF(AND(Y42="상승",Z43>W42),"성공",IF(AND(Y42="하락",Z43<W42),"성공",IF(AND(Y42="상승",Z43=W42),"동일가",IF(AND(Y42="하락",Z43=W42),"동일가","실패")))) -> 성공 | AB43: =S43/H43-1 -> -0.6897516614
B44: 2023-12-08 | C44: 15:35:00 | D44: 11485 | E44: 1233 | F44: 17894 | G44: 2482 | H44: 6409 | I44: 337.2 | J44: -2.105171182 | K44: 5.131305044 | M44: 2023-12-08 | N44: 15:45:00 | O44: 12935 | P44: 1290 | Q44: 15739 | R44: 1812 | S44: 2804 | T44: 337.25 | U44: -1.341149443 | V44: 5.37164751 | W44: 337.25 | Y44: =IF(H44>S44,"하락","상승") -> 하락 | Z44: 334.8 | AA44: =IF(AND(Y43="상승",Z44>W43),"성공",IF(AND(Y43="하락",Z44<W43),"성공",IF(AND(Y43="상승",Z44=W43),"동일가",IF(AND(Y43="하락",Z44=W43),"동일가","실패")))) -> 실패 | AB44: =S44/H44-1 -> -0.5624902481
B45: 2023-12-11 | C45: 15:35:00 | D45: 13135 | E45: 1427 | F45: 17334 | G45: 2336 | H45: 4199 | I45: 338.3 | J45: -1.784248375 | K45: 4.619361936 | M45: 2023-12-11 | N45: 15:45:00 | O45: 11811 | P45: 1168 | Q45: 12822 | R45: 1447 | S45: 1011 | T45: 338.25 | U45: -1.25106562 | V45: 3.623655914 | W45: 338.25 | Y45: =IF(H45>S45,"하락","상승") -> 하락 | Z45: 338 | AA45: =IF(AND(Y44="상승",Z45>W44),"성공",IF(AND(Y44="하락",Z45<W44),"성공",IF(AND(Y44="상승",Z45=W44),"동일가",IF(AND(Y44="하락",Z45=W44),"동일가","실패")))) -> 실패 | AB45: =S45/H45-1 -> -0.7592283877
B46: 2023-12-12 | C46: 15:35:00 | D46: 12966 | E46: 1565 | F46: 15848 | G46: 1966 | H46: 2882 | I46: 340.45 | J46: -0.2239463857 | K46: 7.187032419 | M46: 2023-12-12 | N46: 15:45:00 | O46: 10545 | P46: 1314 | Q46: 11919 | R46: 1160 | S46: 1374 | T46: 340.5 | U46: 2.249885845 | V46: -8.922077922 | W46: 340.5 | Y46: =IF(H46>S46,"하락","상승") -> 하락 | Z46: 340.05 | AA46: =IF(AND(Y45="상승",Z46>W45),"성공",IF(AND(Y45="하락",Z46<W45),"성공",IF(AND(Y45="상승",Z46=W45),"동일가",IF(AND(Y45="하락",Z46=W45),"동일가","실패")))) -> 실패 | AB46: =S46/H46-1 -> -0.5232477446
B47: 2023-12-13 | C47: 15:35:00 | D47: 17299 | E47: 2207 | F47: 10286 | G47: 1128 | H47: -7013 | I47: 336.8 | J47: 1.280552369 | K47: 6.499536608 | M47: 2023-12-13 | N47: 15:45:00 | O47: 12052 | P47: 1597 | Q47: 7190 | R47: 824 | S47: -4862 | T47: 337 | U47: 1.179078187 | V47: 6.289780078 | W47: 337 | Y47: =IF(H47>S47,"하락","상승") -> 상승 | Z47: 340.95 | AA47: =IF(AND(Y46="상승",Z47>W46),"성공",IF(AND(Y46="하락",Z47<W46),"성공",IF(AND(Y46="상승",Z47=W46),"동일가",IF(AND(Y46="하락",Z47=W46),"동일가","실패")))) -> 실패 | AB47: =S47/H47-1 -> -0.3067160987
B48: 2023-12-14 | C48: 15:35:00 | D48: 5049 | E48: 498 | F48: 5005 | G48: 446 | H48: -44 | I48: 340.75 | J48: 1.083418877 | K48: 0.8461538462 | M48: 2023-12-14 | N48: 15:45:00 | O48: 5049 | P48: 498 | Q48: 5005 | R48: 446 | S48: -44 | T48: 340.75 | U48: 1.083418877 | V48: 0.8461538462 | W48: 340.75 | Y48: =IF(H48>S48,"하락","상승") -> 상승 | Z48: 341.25 | AA48: =IF(AND(Y47="상승",Z48>W47),"성공",IF(AND(Y47="하락",Z48<W47),"성공",IF(AND(Y47="상승",Z48=W47),"동일가",IF(AND(Y47="하락",Z48=W47),"동일가","실패")))) -> 성공 | AB48: =S48/H48-1 -> 0
B49: 2023-12-15 | C49: 15:35:00 | D49: 8978 | E49: 1586 | F49: 9221 | G49: 1561 | H49: 243 | I49: 343.55 | J49: 0.2463289853 | K49: -9.72 | M49: 2023-12-15 | N49: 15:45:00 | O49: 9208 | P49: 1301 | Q49: 8820 | R49: 1241 | S49: -388 | T49: 343.25 | U49: 0.02953904546 | V49: 6.466666667 | W49: 343.25 | Y49: =IF(H49>S49,"하락","상승") -> 하락 | Z49: 341.3 | AA49: =IF(AND(Y48="상승",Z49>W48),"성공",IF(AND(Y48="하락",Z49<W48),"성공",IF(AND(Y48="상승",Z49=W48),"동일가",IF(AND(Y48="하락",Z49=W48),"동일가","실패")))) -> 성공 | AB49: =S49/H49-1 -> -2.596707819
B50: 2023-12-18 | C50: 15:35:00 | D50: 9830 | E50: 1382 | F50: 15643 | G50: 2454 | H50: 5813 | I50: 344.45 | J50: -0.7383892567 | K50: 5.422574627 | M50: 2023-12-18 | N50: 15:45:00 | O50: 11057 | P50: 1290 | Q50: 14620 | R50: 1731 | S50: 3563 | T50: 344.45 | U50: -0.1253328497 | V50: 8.079365079 | W50: 344.45 | Y50: =IF(H50>S50,"하락","상승") -> 하락 | Z50: 343.25 | AA50: =IF(AND(Y49="상승",Z50>W49),"성공",IF(AND(Y49="하락",Z50<W49),"성공",IF(AND(Y49="상승",Z50=W49),"동일가",IF(AND(Y49="하락",Z50=W49),"동일가","실패")))) -> 동일가 | AB50: =S50/H50-1 -> -0.3870634784
B51: 2023-12-19 | C51: 15:35:00 | D51: 10399 | E51: 1156 | F51: 17760 | G51: 2782 | H51: 7361 | I51: 344.85 | J51: -2.611778263 | K51: 4.527060271 | M51: 2023-12-19 | N51: 15:45:00 | O51: 10003 | P51: 1016 | Q51: 12969 | R51: 1819 | S51: 2966 | T51: 344.75 | U51: -2.715730825 | V51: 3.693648817 | W51: 344.75 | Y51: =IF(H51>S51,"하락","상승") -> 하락 | Z51: 343.8 | AA51: =IF(AND(Y50="상승",Z51>W50),"성공",IF(AND(Y50="하락",Z51<W50),"성공",IF(AND(Y50="상승",Z51=W50),"동일가",IF(AND(Y50="하락",Z51=W50),"동일가","실패")))) -> 성공 | AB51: =S51/H51-1 -> -0.5970656161
B52: 2023-12-20 | C52: 15:35:00 | D52: 7000 | E52: 843 | F52: 21481 | G52: 3357 | H52: 14481 | I52: 351.6 | J52: -1.904809306 | K52: 5.760143198 | M52: 2023-12-20 | N52: 15:45:00 | O52: 9570 | P52: 1087 | Q52: 16511 | R52: 2078 | S52: 6941 | T52: 351.65 | U52: -0.8584270489 | V52: 7.004036327 | W52: 351.65 | Y52: =IF(H52>S52,"하락","상승") -> 하락 | Z52: 347.2 | AA52: =IF(AND(Y51="상승",Z52>W51),"성공",IF(AND(Y51="하락",Z52<W51),"성공",IF(AND(Y51="상승",Z52=W51),"동일가",IF(AND(Y51="하락",Z52=W51),"동일가","실패")))) -> 실패 | AB52: =S52/H52-1 -> -0.5206822733
B53: 2023-12-21 | C53: 15:35:00 | D53: 12381 | E53: 1602 | F53: 15853 | G53: 2227 | H53: 3472 | I53: 349.15 | J53: -0.6099192915 | K53: 5.5552 | M53: 2023-12-21 | N53: 15:45:00 | O53: 14127 | P53: 1274 | Q53: 15463 | R53: 1685 | S53: 1336 | T53: 348.9 | U53: -1.911842418 | V53: 3.250608273 | W53: 348.9 | Y53: =IF(H53>S53,"하락","상승") -> 하락 | Z53: 349 | AA53: =IF(AND(Y52="상승",Z53>W52),"성공",IF(AND(Y52="하락",Z53<W52),"성공",IF(AND(Y52="상승",Z53=W52),"동일가",IF(AND(Y52="하락",Z53=W52),"동일가","실패")))) -> 성공 | AB53: =S53/H53-1 -> -0.6152073733
B54: 2023-12-22 | C54: 15:35:00 | D54: 12991 | E54: 1972 | F54: 15796 | G54: 2085 | H54: 2805 | I54: 350.65 | J54: 0.9882909899 | K54: 24.82300885 | M54: 2023-12-22 | N54: 15:45:00 | O54: 11655 | P54: 1550 | Q54: 11624 | R54: 1290 | S54: -31 | T54: 350.7 | U54: 1.491497874 | V54: 0.1192307692 | W54: 350.7 | Y54: =IF(H54>S54,"하락","상승") -> 하락 | Z54: 351.45 | AA54: =IF(AND(Y53="상승",Z54>W53),"성공",IF(AND(Y53="하락",Z54<W53),"성공",IF(AND(Y53="상승",Z54=W53),"동일가",IF(AND(Y53="하락",Z54=W53),"동일가","실패")))) -> 실패 | AB54: =S54/H54-1 -> -1.011051693
B55: 2023-12-26 | C55: 15:35:00 | D55: 16475 | E55: 2183 | F55: 19682 | G55: 2988 | H55: 3207 | I55: 351.75 | J55: -0.9599390078 | K55: 3.983850932 | M55: ='1. 매수매도 총잔량'!$A$3 -> 2023-12-27 | N55: 15:45:00 | O55: 12009 | P55: 1658 | Q55: 14016 | R55: 1527 | S55: 2007 | T55: 352 | U55: 1.935717993 | V55: -15.32061069 | W55: 352 | Y55: =IF(H55>S55,"하락","상승") -> 하락 | Z55: 352.45 | AA55: =IF(AND(Y54="상승",Z55>W54),"성공",IF(AND(Y54="하락",Z55<W54),"성공",IF(AND(Y54="상승",Z55=W54),"동일가",IF(AND(Y54="하락",Z55=W54),"동일가","실패")))) -> 실패 | AB55: =S55/H55-1 -> -0.374181478
B56: 2023-12-27 | C56: 15:35:00 | D56: 7706 | E56: 929 | F56: 19119 | G56: 2936 | H56: 11413 | I56: 356.1 | J56: -1.783019816 | K56: 5.686596911 | M56: ='1. 매수매도 총잔량'!$A$3 -> 2023-12-27 | N56: ='1. 매수매도 총잔량'!$A$434 -> 15:45:00 | O56: ='1. 매수매도 총잔량'!$B$434 -> 11304 | P56: ='1. 매수매도 총잔량'!$C$434 -> 867 | Q56: ='1. 매수매도 총잔량'!$D$434 -> 15529 | R56: ='1. 매수매도 총잔량'!$E$434 -> 2076 | S56: ='1. 매수매도 총잔량'!$F$434 -> 4225 | T56: ='1. 매수매도 총잔량'!$G$435 -> 355.9 | U56: ='1. 매수매도 총잔량'!$H$434 -> -5.557811802 | V56: ='1. 매수매도 총잔량'!$I$434 -> 3.494623656 | W56: =T56 -> 355.9 | Y56: =IF(H56>S56,"하락","상승") -> 하락 | Z56: 352.15 | AA56: =IF(AND(Y55="상승",Z56>W55),"성공",IF(AND(Y55="하락",Z56<W55),"성공",IF(AND(Y55="상승",Z56=W55),"동일가",IF(AND(Y55="하락",Z56=W55),"동일가","실패")))) -> 실패 | AB56: =S56/H56-1 -> -0.6298081136
B57: ='1. 매수매도 총잔량'!$A$3 -> 2023-12-27 | C57: ='1. 매수매도 총잔량'!$A$424 -> 15:35:00 | D57: ='1. 매수매도 총잔량'!$B$424 -> 7706 | E57: ='1. 매수매도 총잔량'!$C$424 -> 929 | F57: ='1. 매수매도 총잔량'!$D$424 -> 19119 | G57: ='1. 매수매도 총잔량'!$E$424 -> 2936 | H57: ='1. 매수매도 총잔량'!$F$424 -> 11413 | I57: ='1. 매수매도 총잔량'!$G$425 -> 356.1 | J57: ='1. 매수매도 총잔량'!$H$424 -> -1.783019816 | K57: ='1. 매수매도 총잔량'!$I$424 -> 5.686596911 | M57: ='1. 매수매도 총잔량'!$A$3 -> 2023-12-27 | N57: ='1. 매수매도 총잔량'!$A$434 -> 15:45:00 | O57: ='1. 매수매도 총잔량'!$B$434 -> 11304 | P57: ='1. 매수매도 총잔량'!$C$434 -> 867 | Q57: ='1. 매수매도 총잔량'!$D$434 -> 15529 | R57: ='1. 매수매도 총잔량'!$E$434 -> 2076 | S57: ='1. 매수매도 총잔량'!$F$434 -> 4225 | T57: ='1. 매수매도 총잔량'!$G$435 -> 355.9 | U57: ='1. 매수매도 총잔량'!$H$434 -> -5.557811802 | V57: ='1. 매수매도 총잔량'!$I$434 -> 3.494623656 | W57: =T57 -> 355.9 | Y57: =IF(H57>S57,"하락","상승") -> 하락 | Z57: =[1]!'101V3000.029' -> 352.15 | AA57: =IF(AND(Y56="상승",Z57>W56),"성공",IF(AND(Y56="하락",Z57<W56),"성공",IF(AND(Y56="상승",Z57=W56),"동일가",IF(AND(Y56="하락",Z57=W56),"동일가","실패")))) -> 성공 | AB57: =S57/H57-1 -> -0.6298081136
B58: ='1. 매수매도 총잔량'!$A$3 -> 2023-12-27 | C58: ='1. 매수매도 총잔량'!$A$424 -> 15:35:00 | D58: ='1. 매수매도 총잔량'!$B$424 -> 7706 | E58: ='1. 매수매도 총잔량'!$C$424 -> 929 | F58: ='1. 매수매도 총잔량'!$D$424 -> 19119 | G58: ='1. 매수매도 총잔량'!$E$424 -> 2936 | H58: ='1. 매수매도 총잔량'!$F$424 -> 11413 | I58: ='1. 매수매도 총잔량'!$G$425 -> 356.1 | J58: ='1. 매수매도 총잔량'!$H$424 -> -1.783019816 | K58: ='1. 매수매도 총잔량'!$I$424 -> 5.686596911 | M58: ='1. 매수매도 총잔량'!$A$3 -> 2023-12-27 | N58: ='1. 매수매도 총잔량'!$A$434 -> 15:45:00 | O58: ='1. 매수매도 총잔량'!$B$434 -> 11304 | P58: ='1. 매수매도 총잔량'!$C$434 -> 867 | Q58: ='1. 매수매도 총잔량'!$D$434 -> 15529 | R58: ='1. 매수매도 총잔량'!$E$434 -> 2076 | S58: ='1. 매수매도 총잔량'!$F$434 -> 4225 | T58: ='1. 매수매도 총잔량'!$G$435 -> 355.9 | U58: ='1. 매수매도 총잔량'!$H$434 -> -5.557811802 | V58: ='1. 매수매도 총잔량'!$I$434 -> 3.494623656 | W58: =T58 -> 355.9 | Y58: =IF(H58>S58,"하락","상승") -> 하락 | Z58: =[1]!'101V3000.029' -> 352.15 | AA58: =IF(AND(Y57="상승",Z58>W57),"성공",IF(AND(Y57="하락",Z58<W57),"성공",IF(AND(Y57="상승",Z58=W57),"동일가",IF(AND(Y57="하락",Z58=W57),"동일가","실패")))) -> 성공 | AB58: =S58/H58-1 -> -0.6298081136
